bitfinex-derivatives/quotes_SOLF0:USTF0_20251107
["timestamp","ask_amount","ask_price","bid_price","bid_amount"]
[1762542311222,7.67733966,161.74,161.65,3.12]
[1762542311423,2.87,161.74,161.67,5.5703]
[1762542311725,2.87,161.74,161.65,3.12]
[1762542312124,2.87,161.72,161.65,3.12]
[1762542312423,5.5682,161.74,161.65,3.12]
[1762542312424,2.87,161.7,161.68,0.04387414]
[1762542316031,7.68943088,161.69,161.68,0.04387414]
[1762542316227,7.68943088,161.69,161.63,67.5717]
[1762542316228,2.87,161.68,161.63,67.5717]
[1762542316533,2.87,161.66,161.58,3.12]
[1762542316733,7.68943088,161.65,161.58,3.12]
[1762542316929,2.87,161.63,161.6,5.5728]
[1762542317328,2.91418993,161.63,161.6,5.6145481]
[1762542317828,0.04418993,161.63,161.61,5.5724]
[1762542318135,0.04418993,161.63,161.62,3.12]
[1762542318931,0.04418993,161.63,161.61,5.5724]
[1762542319137,0.04418993,161.63,161.6,0.0417481]
[1762542319333,0.04418993,161.63,161.6,3.1617481]
[1762542319833,2.91418993,161.63,161.6,0.0417481]
[1762542320037,2.87,161.61,161.6,0.0417481]
[1762542320333,2.87,161.6,161.48,3.12]
[1762542320539,2.87,161.58,161.44,3.12]
[1762542320840,2.87,161.56,161.5,5.5762]
[1762542321032,2.87,161.55,161.5,5.5762]
[1762542321238,2.87,161.6,161.5,3.12]
[1762542321438,0.04362877,161.57,161.53,0.04295148]
[1762542321841,0.04362877,161.57,161.53,3.16295148]
[1762542322135,0.04362877,161.57,161.55,3.12]
[1762542323343,0.04362877,161.57,161.55,8.6945]
[1762542323544,0.04362877,161.57,161.56,3.12]
[1762542324339,0.04362877,161.57,161.56,4.36]
[1762542324736,2.87,161.68,161.6,8.6927]
[1762542324942,4.81980611,161.67,161.6,8.6927]
[1762542325143,4.81980611,161.66,161.6,8.6927]
[1762542325442,2.87,161.68,161.6,8.6927]
[1762542325642,2.87,161.66,161.55,3.12]
[1762542325842,2.87,161.64,161.62,0.04350363]
[1762542326039,2.87,161.62,161.55,8.6944]
[1762542326237,2.87,161.66,161.55,3.12]
[1762542326447,7.69141578,161.65,161.55,3.12]
[1762542326646,2.87,161.65,161.55,3.12]
[1762542326846,2.87,161.63,161.57,5.5737]
[1762542327142,2.87,161.61,161.58,0.04143025]
[1762542327336,2.87,161.61,161.58,0.04012561]
[1762542327531,2.90973792,161.62,161.58,0.04012561]
[1762542328548,2.87,161.6,161.58,0.04012561]
[1762542328740,2.87,161.6,161.53,62.0]
[1762542328948,2.87,161.6,161.48,8.85498333]
[1762542329150,2.87,161.58,161.48,3.12]
[1762542329335,8.4438,161.58,161.49,5.5766]
[1762542329540,2.87,161.57,161.48,3.12]
[1762542329736,0.04538375,161.54,161.51,0.04303045]
[1762542330053,2.91538375,161.54,161.51,0.04303045]
[1762542331144,0.04538375,161.54,161.51,3.16303045]
[1762542331547,0.04538375,161.54,161.52,5.5754]
[1762542331739,0.04538375,161.54,161.52,8.6954]
[1762542332443,0.04538375,161.54,161.53,3.14]
[1762542333547,0.04538375,161.54,161.51,0.04303045]
[1762542334152,3.18538375,161.54,161.51,0.04303045]
[1762542335347,3.14,161.52,161.41,3.14]
[1762542335653,7.69029971,161.59,161.4,63.1]
[1762542335654,3.14,161.56,161.45,3.14]
[1762542336047,3.14,161.59,161.5,3.14]
[1762542336450,0.04546579,161.56,161.53,0.03956983]
[1762542336852,0.04546579,161.56,161.54,3.14]
[1762542337153,0.04546579,161.56,161.53,8.75466983]
[1762542337350,0.04546579,161.56,161.53,65.17956983]
[1762542337556,0.04546579,161.56,161.53,0.03956983]
[1762542337853,3.18546579,161.56,161.53,0.03956983]
[1762542338458,0.04546579,161.56,161.53,3.17956983]
[1762542338851,3.18546579,161.56,161.53,0.03956983]
[1762542340247,5.5748,161.55,161.53,0.03956983]
[1762542340552,8.01990335,161.54,161.46,62.0]
[1762542340759,7.79000679,161.53,161.46,62.0]
[1762542340961,4.88066914,161.52,161.45,3.11]
[1762542341161,2.91,161.53,161.45,3.11]
[1762542341364,4.88193586,161.52,161.45,3.11]
[1762542341555,0.04497159,161.5,161.45,3.11]
[1762542342157,2.95497159,161.5,161.45,3.11]
[1762542342656,2.91,161.49,161.41,3.11]
[1762542342848,0.04247956,161.47,161.41,3.11]
[1762542343052,0.04247956,161.47,161.41,4.18756619]
[1762542343248,2.91,161.45,161.37,8.6907]
[1762542343463,0.04507767,161.43,161.38,3.11]
[1762542343652,0.04507767,161.43,161.41,3.11]
[1762542343854,0.04049827,161.44,161.42,3.11]
[1762542344156,0.04049827,161.44,161.43,3.11]
[1762542345161,0.04049827,161.44,161.43,4.35]
[1762542348558,0.04049827,161.44,161.42,67.579]
[1762542348559,0.04049827,161.44,161.42,62.0]
[1762542348764,0.04049827,161.44,161.4,3.11]
[1762542349160,0.04049827,161.44,161.4,8.6896]
[1762542349364,0.04049827,161.44,161.41,3.11]
[1762542350765,0.04049827,161.44,161.39,1.07773304]
[1762542350970,0.04049827,161.44,161.4,3.11]
[1762542351768,0.04049827,161.44,161.41,62.0]
[1762542351971,0.04049827,161.44,161.41,65.11]
[1762542352570,0.04049827,161.44,161.43,3.11]
[1762542356163,0.04049827,161.44,161.41,65.11]
[1762542356971,0.04049827,161.44,161.41,62.0]
[1762542357170,0.04049827,161.44,161.4,3.11]
[1762542357370,0.04049827,161.44,161.42,3.11]
[1762542357865,0.04049827,161.44,161.42,8.689]
[1762542358069,0.04049827,161.44,161.43,3.11]
[1762542359866,2.91,161.53,161.46,8.6878]
[1762542360370,2.91,161.51,161.41,3.11]
[1762542360577,2.91,161.49,161.4,5.5797]
[1762542360766,4.88663727,161.48,161.41,3.11]
[1762542360968,0.04712241,161.46,161.45,3.11]
[1762542361272,0.04555027,161.47,161.45,3.11]
[1762542361473,0.04231311,161.48,161.45,3.11]
[1762542361674,0.04231311,161.48,161.45,8.688]
[1762542362061,0.04231311,161.48,161.46,5.5776]
[1762542362265,0.04231311,161.48,161.46,8.5676]
[1762542362475,0.04231311,161.48,161.46,5.5776]
[1762542362669,0.04231311,161.48,161.44,3.0314736]
[1762542363465,0.04231311,161.48,161.44,65.0314736]
[1762542363671,0.04231311,161.48,161.45,5.578]
[1762542363876,3.08231311,161.48,161.44,0.0414736]
[1762542364175,3.04,161.47,161.44,0.0414736]
[1762542364475,4.89817249,161.46,161.44,0.0414736]
[1762542364672,0.04231311,161.48,161.44,3.0314736]
[1762542365770,5.71397707,161.58,161.47,2.99]
[1762542365969,4.9041879,161.57,161.47,2.99]
[1762542366272,3.04,161.61,161.45,27.35725494]
[1762542366273,5.71397707,161.61,161.55,2.99]
[1762542366471,8.75397707,161.65,161.55,2.99]
[1762542366666,4.90742479,161.64,161.55,2.99]
[1762542366872,0.04289375,161.61,161.6,2.99]
[1762542367067,0.04398021,161.62,161.6,2.99]
[1762542367277,8.75397707,161.69,161.6,2.99]
[1762542367573,0.0425957,161.63,161.62,2.99]
[1762542367769,0.04261586,161.64,161.62,2.99]
[1762542367968,0.04327583,161.65,161.62,2.99]
[1762542368164,0.0472397,161.65,161.62,3.03095232]
[1762542368779,0.0472397,161.65,161.63,8.5619]
[1762542368975,0.0472397,161.65,161.62,0.04095232]
[1762542369173,0.0472397,161.65,161.62,3.03095232]
[1762542370483,0.0472397,161.65,161.64,2.99]
[1762542372577,0.0472397,161.65,161.63,5.5717]
[1762542372771,0.0472397,161.65,161.62,3.03095232]
[1762542373275,0.0472397,161.65,161.63,2.99]
[1762542374173,0.0472397,161.65,161.63,64.99]
[1762542374367,0.0472397,161.65,161.64,2.99]
[1762542375784,0.0472397,161.65,161.63,5.5717]
[1762542376077,0.0472397,161.65,161.62,0.04095232]
[1762542376579,3.0872397,161.65,161.62,0.04095232]
[1762542376981,0.0472397,161.65,161.62,0.04095232]
[1762542377582,3.0872397,161.65,161.62,0.04095232]
[1762542379279,3.04,161.63,161.55,2.99]
[1762542379976,3.04,161.63,161.56,5.5741]
[1762542380177,0.04763376,161.61,161.58,0.04283439]
[1762542380878,0.04763376,161.61,161.58,3.03283439]
[1762542381885,0.04763376,161.61,161.6,2.99]
[1762542382184,0.04763376,161.61,161.59,67.5731]
[1762542382384,0.04763376,161.61,161.58,0.04283439]
[1762542382686,3.08763376,161.61,161.58,0.04283439]
[1762542383289,0.04763376,161.61,161.58,3.03283439]
[1762542383576,0.04763376,161.61,161.58,0.04283439]
[1762542384378,3.08763376,161.61,161.58,0.04283439]
[1762542389082,0.04763376,161.61,161.58,0.04283439]
[1762542389277,3.08763376,161.61,161.58,0.04283439]
[1762542389483,3.08763376,161.61,161.58,5.61623439]
[1762542390378,3.08763376,161.61,161.58,0.04283439]
[1762542391279,0.04763376,161.61,161.58,5.61633439]
[1762542391580,0.04763376,161.61,161.58,3.03283439]
[1762542392086,0.04763376,161.61,161.59,5.5731]
[1762542392282,0.04763376,161.61,161.58,3.03283439]
[1762542392483,0.04763376,161.61,161.58,8.60633439]
[1762542393791,0.04763376,161.61,161.59,5.5731]
[1762542394789,0.04763376,161.61,161.59,8.6431]
[1762542395293,0.04763376,161.61,161.6,3.07]
[1762542396592,2.9,161.69,161.61,3.07]
[1762542396793,2.9,161.69,161.6,8.80725494]
[1762542396991,2.9,161.68,161.6,8.80725494]
[1762542397191,2.9,161.68,161.62,5.5721]
[1762542397591,2.9,161.68,161.6,11.87725494]
[1762542397799,0.04227289,161.66,161.62,3.1163665]
[1762542398392,0.04227289,161.66,161.65,3.07]
[1762542398593,2.9,161.72,161.65,3.07]
[1762542399698,0.04324979,161.7,161.67,5.6162451]
[1762542400193,2.94324979,161.7,161.67,5.6162451]
[1762542400697,0.04324979,161.7,161.67,5.6162451]
[1762542401298,3.07324979,161.7,161.67,0.0457451]
[1762542402800,3.03,161.68,161.62,5.5721]
[1762542403301,3.03,161.67,161.61,5.73677853]
[1762542403507,3.03,161.67,161.63,5.5718]
[1762542403806,3.0736701,161.67,161.63,5.61408828]
[1762542405007,3.0736701,161.67,161.64,5.5714]
[1762542405603,3.0736701,161.67,161.63,0.04228828]
[1762542406711,8.6442701,161.67,161.63,0.04228828]
[1762542406908,3.0736701,161.67,161.63,0.04228828]
[1762542407116,3.03,161.65,161.63,0.04228828]
[1762542408612,8.6013,161.65,161.63,0.04228828]
[1762542408808,3.03,161.64,161.63,0.04228828]
[1762542409211,7.73780875,161.64,161.63,0.04228828]
[1762542409413,3.03,161.61,161.57,5.5737]
[1762542409610,3.03,161.61,161.56,8.72677853]
[1762542410309,3.03,161.65,161.57,2.99]
[1762542410512,0.04183536,161.63,161.61,2.99]
[1762542410813,8.7305665,161.69,161.61,2.99]
[1762542410814,0.04662554,161.64,161.61,2.99]
[1762542411114,0.04662554,161.64,161.61,3.03072892]
[1762542411308,0.04662554,161.64,161.63,2.99]
[1762542411615,8.7305665,161.71,161.63,2.99]
[1762542411914,4.71427265,161.7,161.64,5.5714]
[1762542412215,7.74427265,161.69,161.64,2.99]
[1762542412514,4.7579337,161.68,161.65,0.0442979]
[1762542412714,3.07366105,161.68,161.65,0.0442979]
[1762542415310,3.07366105,161.68,161.65,5.6153979]
[1762542415506,0.04366105,161.68,161.65,8.6053979]
[1762542415703,0.04366105,161.68,161.65,3.0342979]
[1762542416108,0.04366105,161.68,161.65,8.6053979]
[1762542416308,0.04366105,161.68,161.65,5.6153979]
[1762542416611,3.07366105,161.68,161.65,5.6153979]
[1762542420219,0.04366105,161.68,161.67,2.99]
[1762542420421,0.04366105,161.68,161.66,5.5708]
[1762542420610,0.04366105,161.68,161.65,5.78107643]
[1762542420611,3.07366105,161.68,161.65,0.0442979]
[1762542422508,0.04366105,161.68,161.65,3.0442979]
[1762542422709,0.04366105,161.68,161.66,5.5707]
[1762542423309,2.95366105,161.68,161.65,0.0442979]
[1762542424822,0.04366105,161.68,161.65,3.0442979]
[1762542425014,0.04366105,161.68,161.65,0.0442979]
[1762542425215,2.95366105,161.68,161.65,0.0442979]
[1762542425817,2.95366105,161.68,161.65,5.6153979]
[1762542426514,2.95366105,161.68,161.65,0.0442979]
[1762542427310,0.04366105,161.68,161.65,3.0442979]
[1762542427714,0.04366105,161.68,161.66,3.0]
[1762542428314,0.04366105,161.68,161.67,2.20285663]
[1762542428720,0.04366105,161.68,161.67,5.20285663]
[1762542429021,2.91,161.74,161.68,3.0]
[1762542429228,2.91,161.74,161.73,2.20285663]
[1762542429522,7.79485191,161.74,161.73,2.20285663]
[1762542430417,7.79485191,161.74,161.72,0.04323355]
[1762542430615,2.91,161.74,161.72,0.04323355]
[1762542431229,0.03994352,161.75,161.72,3.04323355]
[1762542431523,2.91,161.73,161.72,0.04323355]
[1762542431725,2.91,161.72,161.63,5.73389844]
[1762542431924,4.88491078,161.73,161.63,5.73389844]
[1762542431925,2.91,161.7,161.63,5.73389844]
[1762542432115,7.79758833,161.69,161.65,5.5711]
[1762542432316,2.91,161.69,161.65,5.5711]
[1762542432827,2.94959564,161.69,161.65,5.61439036]
[1762542433126,2.94959564,161.69,161.65,0.04329036]
[1762542433324,0.03959564,161.69,161.65,3.04329036]
[1762542433523,0.03959564,161.69,161.68,3.0]
[1762542433828,2.91,161.77,161.68,3.0]
[1762542434125,2.91,161.75,161.68,3.0]
[1762542434319,2.91,161.73,161.65,3.0]
[1762542434515,7.79759911,161.72,161.65,3.0]
[1762542434728,0.0410956,161.7,161.67,5.61342822]
[1762542435020,2.9510956,161.7,161.67,0.04302822]
[1762542435228,7.800211,161.69,161.67,0.04302822]
[1762542435425,2.91,161.69,161.67,0.04302822]
[1762542435626,0.0410956,161.7,161.67,3.04302822]
[1762542435814,2.9510956,161.7,161.67,0.04302822]
[1762542436015,7.80011599,161.69,161.67,0.04302822]
[1762542436230,2.91,161.68,161.67,0.04302822]
[1762542436815,7.80227439,161.68,161.61,5.5724]
[1762542437021,2.91,161.66,161.59,3.0]
[1762542437218,4.89227439,161.65,161.59,3.0]
[1762542437419,2.91,161.63,161.59,3.0]
[1762542437828,2.950925,161.63,161.59,3.04760093]
[1762542438126,2.950925,161.63,161.59,8.62070093]
[1762542438327,0.040925,161.63,161.6,3.0]
[1762542439527,0.040925,161.63,161.62,3.0]
[1762542439827,5.7005665,161.72,161.63,3.0]
[1762542440023,2.91,161.74,161.62,5.73389844]
[1762542440024,4.89188826,161.71,161.65,3.0]
[1762542440224,8.6105665,161.74,161.67,3.0]
[1762542440527,4.89217721,161.73,161.67,3.0]
[1762542440728,4.93883625,161.72,161.68,3.04350939]
[1762542440928,0.04665904,161.72,161.68,3.04350939]
[1762542441228,4.89174774,161.71,161.68,0.04350939]
[1762542441430,2.95665904,161.72,161.68,0.04350939]
[1762542441630,4.89167257,161.71,161.68,0.04350939]
[1762542441923,2.95665904,161.72,161.68,0.04350939]
[1762542442129,4.89187741,161.71,161.68,0.04350939]
[1762542442328,2.95665904,161.72,161.68,0.04350939]
[1762542442523,4.89172743,161.71,161.68,0.04350939]
[1762542442723,2.95665904,161.72,161.68,0.04350939]
[1762542442923,4.89171202,161.71,161.68,0.04350939]
[1762542443130,2.95665904,161.72,161.68,0.04350939]
[1762542443326,4.8912926,161.71,161.68,0.04350939]
[1762542443630,2.95665904,161.72,161.68,0.04350939]
[1762542443929,4.89140409,161.71,161.68,0.04350939]
[1762542444119,2.95665904,161.72,161.68,0.04350939]
[1762542444326,2.91,161.7,161.68,0.04350939]
[1762542445726,7.80165546,161.69,161.68,0.04350939]
[1762542446030,11.31602554,161.72,161.68,0.04350939]
[1762542446031,2.95665904,161.72,161.68,0.04350939]
[1762542446231,7.80145742,161.71,161.68,0.04350939]
[1762542446431,2.91,161.71,161.68,0.04350939]
[1762542447735,2.95665904,161.72,161.68,0.04350939]
[1762542447929,2.95665904,161.72,161.68,5.61370939]
[1762542448128,4.89087901,161.71,161.68,8.61370939]
[1762542448331,2.95665904,161.72,161.68,8.61370939]
[1762542448633,0.04665904,161.72,161.69,3.0]
[1762542449033,0.04665904,161.72,161.68,0.04350939]
[1762542449335,0.04665904,161.72,161.69,5.5697]
[1762542449531,0.04665904,161.72,161.7,3.0]
[1762542450035,0.04665904,161.72,161.7,5.5694]
[1762542450232,0.04665904,161.72,161.7,8.5694]
[1762542450732,0.04665904,161.72,161.71,3.0]
[1762542450940,2.91,161.79,161.71,3.0]
[1762542451133,4.88853815,161.78,161.71,3.0]
[1762542451335,4.88853815,161.77,161.71,3.0]
[1762542451638,7.79709348,161.76,161.71,3.0]
[1762542451837,2.91,161.76,161.71,3.0]
[1762542452038,0.03907894,161.75,161.72,0.04125903]
[1762542453034,3.03907894,161.75,161.72,0.04125903]
[1762542454033,0.03907894,161.75,161.72,0.04125903]
[1762542454238,0.03907894,161.75,161.72,2.89125903]
[1762542455129,0.03907894,161.75,161.72,0.04125903]
[1762542455332,0.03907894,161.75,161.72,2.89125903]
[1762542455533,0.03907894,161.75,161.72,0.04125903]
[1762542455728,0.03907894,161.75,161.73,5.5683]
[1762542456736,0.03907894,161.75,161.74,2.85]
[1762542459347,3.0,161.87,161.8,2.85]
[1762542459547,4.9590949,161.86,161.8,2.85]
[1762542459740,4.9590949,161.85,161.83,5.5649]
[1762542460041,3.0,161.87,161.8,2.85]
[1762542460042,8.7005665,161.91,161.8,2.85]
[1762542460243,3.0,161.86,161.84,0.04628411]
[1762542467649,0.03942197,161.87,161.84,0.04628411]
[1762542468047,0.03942197,161.87,161.84,2.91628411]
[1762542468644,0.03942197,161.87,161.85,5.5642]
[1762542469045,0.03942197,161.87,161.84,2.91628411]
[1762542469442,0.03942197,161.87,161.86,2.87]
[1762542471147,0.03942197,161.87,161.85,5.5642]
[1762542471346,0.03942197,161.87,161.85,8.4342]
[1762542471549,3.15942197,161.87,161.84,0.04628411]
[1762542478955,8.72332197,161.87,161.84,0.04628411]
[1762542479152,3.12,161.86,161.84,0.04628411]
[1762542479655,0.03942197,161.87,161.84,0.04628411]
[1762542480245,0.03942197,161.87,161.86,2.87]
[1762542480552,3.12,161.96,161.87,2.87]
[1762542480754,3.12,161.94,161.87,2.87]
[1762542481155,3.12,161.94,161.87,64.87]
[1762542481455,0.04501222,161.92,161.89,8.47370574]
[1762542483255,0.04501222,161.92,161.89,2.91090574]
[1762542485454,3.02501222,161.92,161.89,2.91090574]
[1762542485658,0.04501222,161.92,161.89,2.91090574]
[1762542486062,2.98,161.91,161.89,0.04090574]
[1762542486360,0.04501222,161.92,161.89,3.18090574]
[1762542486755,3.02501222,161.92,161.89,5.60360574]
[1762542487355,0.04501222,161.92,161.9,3.14]
[1762542488157,3.02501222,161.92,161.89,0.04090574]
[1762542488760,3.02501222,161.92,161.89,3.18090574]
[1762542489862,0.04501222,161.92,161.89,8.74370574]
[1762542490455,0.04501222,161.92,161.9,8.7023]
[1762542490660,0.04501222,161.92,161.91,3.14]
[1762542491564,0.04501222,161.92,161.9,5.5623]
[1762542491765,0.04501222,161.92,161.9,8.7023]
[1762542492163,0.04501222,161.92,161.89,0.04090574]
[1762542492164,3.02501222,161.92,161.89,0.04090574]
[1762542492665,3.02501222,161.92,161.89,3.18090574]
[1762542492866,0.04501222,161.92,161.89,3.18090574]
[1762542493458,0.04501222,161.92,161.91,3.14]
[1762542493969,0.04501222,161.92,161.9,5.5623]
[1762542493970,0.04501222,161.92,161.9,3.14]
[1762542494269,3.02501222,161.92,161.89,0.04090574]
[1762542494676,2.98,161.9,161.89,0.04090574]
[1762542494965,2.98,161.9,161.86,5.5639]
[1762542494966,7.82865671,161.9,161.86,5.5639]
[1762542495164,2.98,161.93,161.87,3.14]
[1762542495367,2.98,161.91,161.87,3.14]
[1762542495662,4.85130393,161.9,161.83,3.14]
[1762542495865,3.02601129,161.88,161.85,0.03936295]
[1762542496572,0.04601129,161.88,161.86,3.14]
[1762542497770,0.04601129,161.88,161.86,8.7037]
[1762542497971,0.04601129,161.88,161.87,3.14]
[1762542499771,2.98,161.97,161.92,8.7018]
[1762542500072,4.85887236,161.96,161.92,8.7018]
[1762542500267,2.98,161.97,161.93,3.14]
[1762542500470,8.68968174,162.01,161.93,3.14]
[1762542500667,4.85983444,162.0,161.95,0.042513]
[1762542500865,4.90181889,161.99,161.95,3.182513]
[1762542501172,4.85983444,161.98,161.95,3.182513]
[1762542501374,4.85983444,161.97,161.95,3.182513]
[1762542501576,0.04198445,161.99,161.95,3.182513]
[1762542501768,4.86082627,161.98,161.97,3.14]
[1762542501963,0.04198445,161.99,161.97,3.14]
[1762542502567,0.04198445,161.99,161.95,8.81843831]
[1762542502568,0.04198445,161.99,161.98,8.6998]
[1762542502771,8.68968174,162.05,161.99,3.14]
[1762542502975,4.85913806,162.04,162.0,5.559]
[1762542503171,4.85913806,162.03,162.01,3.14]
[1762542503472,2.98,162.05,162.01,3.14]
[1762542503770,4.85709306,162.04,162.01,3.18534683]
[1762542503973,4.85709306,162.03,162.01,3.18534683]
[1762542504276,0.04120917,162.05,162.01,3.18534683]
[1762542504472,4.85531021,162.04,162.01,3.18534683]
[1762542504668,4.85531021,162.03,162.01,3.18534683]
[1762542504871,0.04120917,162.05,162.01,3.18534683]
[1762542505072,4.85531021,162.04,162.01,3.18534683]
[1762542505268,4.85531021,162.03,162.01,3.18534683]
[1762542505471,0.04120917,162.05,162.01,3.18534683]
[1762542505872,0.04120917,162.05,162.02,8.6983]
[1762542506068,0.04120917,162.05,162.02,3.14]
[1762542506269,3.02120917,162.05,162.01,0.04534683]
[1762542506772,4.80004882,162.04,162.01,0.04534683]
[1762542506974,3.02120917,162.05,162.01,0.04534683]
[1762542507274,4.79995652,162.04,162.01,0.04534683]
[1762542507570,3.02120917,162.05,162.01,0.04534683]
[1762542508481,2.98,162.03,162.01,0.04534683]
[1762542508775,7.77690584,162.02,161.95,66.0]
[1762542508968,4.79690584,162.01,161.95,66.0]
[1762542509280,2.98,162.02,161.95,71.5607]
[1762542509479,2.98,162.0,161.92,8.77592531]
[1762542509678,3.02498521,161.98,161.94,0.04123762]
[1762542509881,0.03942404,161.98,161.96,3.14]
[1762542510273,0.03942404,161.98,161.96,8.7004]
[1762542510575,0.03942404,161.98,161.97,3.14]
[1762542510777,2.98,162.06,161.97,3.14]
[1762542510973,2.98,162.04,162.0,8.6991]
[1762542511374,2.98,162.08,162.01,3.14]
[1762542511575,7.77602886,162.07,162.01,3.14]
[1762542511783,2.98,162.05,162.02,0.04567395]
[1762542515082,0.04019876,162.06,162.02,3.14567395]
[1762542516382,0.04019876,162.06,162.04,8.6577]
[1762542517274,0.04019876,162.06,162.02,0.04567395]
[1762542517275,2.91019876,162.06,162.02,8.70407395]
[1762542517781,0.04019876,162.06,162.03,8.658]
[1762542518286,2.91019876,162.06,162.03,5.558]
[1762542518874,2.91019876,162.06,162.02,0.04567395]
[1762542519281,2.87,162.04,162.02,0.04567395]
[1762542519486,2.87,162.02,161.93,3.1]
[1762542519888,2.87,162.0,161.93,3.1]
[1762542520089,2.87,162.0,161.94,5.561]
[1762542520291,2.87,162.0,161.93,3.1]
[1762542520491,0.04122899,161.98,161.95,3.02896803]
[1762542520786,0.04122899,161.98,161.97,2.99]
[1762542520986,3.04,162.04,161.97,2.99]
[1762542521989,0.04512927,162.02,161.99,0.04253312]
[1762542523103,3.08512927,162.02,161.99,0.04253312]
[1762542523892,4.83681981,162.01,161.99,0.04253312]
[1762542524196,3.04,161.99,161.93,2.99]
[1762542524401,3.04,161.99,161.86,73.9476]
[1762542524402,3.04,161.99,161.88,2.99]
[1762542524601,3.04,161.97,161.88,2.99]
[1762542525000,3.04,161.97,161.93,2.99]
[1762542525304,0.04564707,161.97,161.93,3.03257566]
[1762542526601,0.04564707,161.97,161.93,8.59417566]
[1762542527196,3.08564707,161.97,161.93,8.59417566]
[1762542527404,3.08564707,161.97,161.93,0.04257566]
[1762542527704,3.04,161.95,161.93,0.04257566]
[1762542527913,3.04,161.95,161.86,65.81]
[1762542528800,3.04,161.95,161.89,5.5629]
[1762542529003,0.04620619,161.92,161.9,2.99]
[1762542529208,0.04752745,161.93,161.9,2.99]
[1762542529505,0.04752745,161.93,161.9,3.03333945]
[1762542529896,0.04752745,161.93,161.91,8.5521]
[1762542530801,0.04752745,161.93,161.92,64.99]
[1762542532402,3.04,162.03,161.98,5.5599]
[1762542532598,3.04,162.01,161.93,2.99]
[1762542532802,7.88383516,162.0,161.93,2.99]
[1762542533000,3.04,162.0,161.94,5.5612]
[1762542533205,3.04,162.0,161.93,2.99]
[1762542533510,0.0470226,161.98,161.95,0.0471612]
[1762542534102,3.0870226,161.98,161.95,0.0471612]
[1762542536308,8.6470226,161.98,161.95,0.0471612]
[1762542536508,3.04,161.97,161.95,0.0471612]
[1762542540214,3.04,161.96,161.95,0.0471612]
[1762542540713,3.04,161.96,161.65,26.28332901]
[1762542540714,3.04,161.94,161.86,71.52957538]
[1762542541115,3.04,161.9,161.83,5.71957538]
[1762542541423,3.04,161.88,161.82,2.99]
[1762542541709,3.04,161.88,161.83,0.03928264]
[1762542541910,3.04,161.86,161.83,0.03928264]
[1762542543914,3.07,161.85,161.83,0.03928264]
[1762542544415,3.07,161.84,161.77,5.71957538]
[1762542545010,3.07,161.84,161.77,14.39647538]
[1762542545523,3.07,161.81,161.79,0.04672694]
[1762542545815,3.07,161.81,161.78,0.04380816]
[1762542546614,0.04512091,161.82,161.78,3.15380816]
[1762542546814,3.07,161.89,161.81,3.11]
[1762542547514,3.07,161.89,161.82,62.0]
[1762542547707,3.07,161.88,161.82,62.0]
[1762542547913,3.07,161.86,161.83,0.04330715]
[1762542548915,0.04284297,161.87,161.83,8.87288253]
[1762542549119,0.04284297,161.87,161.84,3.11]
[1762542549916,0.04284297,161.87,161.84,8.6745]
[1762542550316,0.04284297,161.87,161.84,3.11]
[1762542550512,0.04284297,161.87,161.86,3.11]
[1762542550914,0.04284297,161.87,161.86,70.82957538]
[1762542552118,3.07,161.94,161.86,70.82957538]
[1762542552716,3.07,161.98,161.9,3.11]
[1762542553029,3.07,161.96,161.9,3.11]
[1762542553327,3.07,161.96,161.89,5.71957538]
[1762542553328,3.10970113,161.96,161.91,0.04200954]
[1762542553723,3.10970113,161.96,161.91,3.15200954]
[1762542553928,3.10970113,161.96,161.91,8.71410954]
[1762542554326,3.10970113,161.96,161.91,3.15200954]
[1762542554627,3.10970113,161.96,161.91,0.04200954]
[1762542554922,3.07,161.94,161.91,0.04200954]
[1762542556428,3.07,161.92,161.79,3.11]
[1762542556729,6.25760736,161.93,161.72,11.1373]
[1762542556730,3.07,161.9,161.8,8.82957538]